bitfinex/quotes_ETHUSD_20251201
["timestamp","ask_amount","ask_price","bid_price","bid_amount"]
[1764551632525,0.002,2855.3,2854.8,0.001]
[1764551633103,0.002,2855.3,2854.9,0.228]
[1764551633806,0.4724,2855.3,2855.0,0.03502626]
[1764551634024,0.002,2855.3,2854.9,0.228]
[1764551634224,0.4724,2855.3,2854.8,0.001]
[1764551634425,0.4724,2855.3,2854.9,0.228]
[1764551635039,0.4724,2855.3,2854.8,0.001]
[1764551635040,0.4941,2855.0,2854.8,0.001]
[1764551635239,0.4724,2855.3,2854.8,0.001]
[1764551635450,0.1934,2854.9,2854.8,0.001]
[1764551635752,0.6875,2854.9,2854.8,0.001]
[1764551636130,0.002,2855.3,2854.8,0.001]
[1764551636326,0.4704,2855.2,2854.8,0.001]
[1764551636526,0.6875,2854.9,2854.8,0.001]
[1764551636950,1.1579,2854.9,2854.8,0.001]
[1764551637344,0.4724,2855.3,2854.8,0.001]
[1764551637526,0.4704,2855.2,2854.8,0.001]
[1764551637726,0.4724,2855.3,2854.8,0.001]
[1764551637948,0.002,2855.3,2854.8,0.001]
[1764551638127,0.4704,2855.2,2854.8,0.001]
[1764551638322,0.1934,2854.9,2854.8,0.001]
[1764551638621,0.4704,2855.2,2854.8,0.001]
[1764551639028,0.002,2855.3,2854.8,0.001]
[1764551639529,0.002,2855.3,2854.8,1.05203533]
[1764551640254,0.4724,2855.3,2854.8,1.05203533]
[1764551640920,0.6875,2854.9,2854.8,0.001]
[1764551641333,0.6875,2854.9,2854.8,0.03602872]
[1764551641732,1.1579,2854.9,2854.8,0.03602872]
[1764551642019,4.66064965,2854.9,2854.8,0.001]
[1764551642223,0.6875,2854.9,2854.8,0.001]
[1764551642448,1.1579,2854.9,2854.8,0.001]
[1764551642633,8.04768732,2855.3,2854.8,0.3624]
[1764551642634,0.002,2855.3,2854.8,0.3624]
[1764551642848,0.002,2855.3,2855.2,0.0667]
[1764551643050,0.002,2855.3,2854.9,0.0667]
[1764551643224,0.002,2855.3,2854.9,7.0054993]
[1764551643423,0.002,2855.3,2855.0,1.48190811]
[1764551643837,0.002,2855.3,2855.1,0.03502504]
[1764551644037,0.002,2855.3,2855.2,0.0667]
[1764551644444,0.002,2855.3,2855.1,0.03502504]
[1764551644938,0.002,2855.3,2855.0,0.756314]
[1764551645143,0.002,2855.3,2854.9,0.72559411]
[1764551645339,0.002,2855.3,2855.1,3.50250429]
[1764551645748,0.002,2855.3,2855.1,7.00500858]
[1764551645947,0.002,2855.3,2854.8,0.229]
[1764551646147,0.002,2855.3,2854.9,0.03502749]
[1764551646670,0.002,2855.3,2855.0,0.43720542]
[1764551647266,0.002,2855.3,2855.2,3.56908161]
[1764551647834,0.002,2855.3,2855.2,3.50238161]
[1764551648041,0.002,2855.3,2855.2,3.73038161]
[1764551648780,0.002,2855.3,2855.2,0.228]
[1764551648942,0.002,2855.3,2855.2,3.73038161]
[1764551650390,0.002,2855.3,2855.2,3.79708161]
[1764551650552,0.002,2855.3,2855.2,3.76540542]
[1764551650744,0.002,2855.3,2855.2,0.26302381]
[1764551651177,0.002,2855.3,2855.2,3.73038161]
[1764551651694,0.002,2855.3,2854.8,0.001]
[1764551651695,0.9665,2855.3,2855.0,0.228]
[1764551651983,0.9665,2855.3,2854.8,0.001]
[1764551651984,0.4941,2855.1,2854.8,0.001]
[1764551652200,0.6875,2854.9,2854.8,0.001]
[1764551652484,0.34675724,2854.7,2854.5,0.001]
[1764551652685,0.4941,2854.6,2854.5,0.001]
[1764551652888,0.9645,2854.6,2854.5,0.001]
[1764551653547,4.46761777,2854.6,2854.5,0.001]
[1764551653744,4.81437501,2854.6,2854.5,0.001]
[1764551653947,5.53996912,2854.6,2854.5,0.001]
[1764551655707,1.69009411,2854.6,2854.5,0.001]
[1764551656185,5.53996912,2854.6,2854.5,0.001]
[1764551656383,5.19321188,2854.6,2854.5,0.001]
[1764551656958,5.53996912,2854.6,2854.5,0.001]
[1764551657551,14.13506755,2854.6,2854.5,0.001]
[1764551658080,14.54057155,2854.6,2854.5,0.001]
[1764551659979,14.13506755,2854.6,2854.5,0.001]
[1764551660184,14.36306755,2854.6,2854.5,0.001]
[1764551660998,14.76857155,2854.6,2854.5,0.001]
[1764551661154,14.76857155,2854.6,2852.4,7.35572608]
[1764551661155,0.34675724,2853.7,2852.0,0.0697]
[1764551661357,0.34675724,2853.5,2852.2,0.228]
[1764551661557,7.00918202,2853.4,2852.4,3.5057746]
[1764551661866,7.47958202,2853.4,2852.5,0.03605696]
[1764551662067,0.34675724,2853.5,2852.5,0.03605696]
[1764551662068,0.4704,2853.3,2852.6,0.35418316]
[1764551662274,0.4704,2853.3,2852.5,0.001]
[1764551662866,0.4704,2853.3,2852.5,0.03605696]
[1764551663595,3.50483667,2853.2,2852.5,0.03605696]
[1764551663896,7.35643058,2853.2,2852.5,0.001]
[1764551664112,0.4712,2853.1,2852.5,0.03605696]
[1764551664412,0.1999,2852.6,2852.5,0.03605696]
[1764551664911,0.4712,2853.1,2852.5,0.03605696]
[1764551665127,0.1999,2852.8,2852.5,0.03605696]
[1764551665499,0.1999,2852.8,2852.5,0.001]
[1764551665812,0.4712,2853.1,2852.5,0.001]
[1764551666126,4.32292958,2853.1,2852.5,0.03605696]
[1764551666289,4.32292958,2853.1,2852.5,0.001]
[1764551666485,4.32292958,2853.1,2852.5,0.03605696]
[1764551666703,4.32292958,2853.1,2852.5,0.001]
[1764551666992,4.32292958,2853.1,2852.5,0.03605696]
[1764551667403,3.85172958,2853.1,2852.5,0.03605696]
[1764551667613,0.4742,2852.6,2852.5,0.001]
[1764551667790,4.5545311,2852.6,2852.5,0.001]
[1764551667993,5.0325311,2852.6,2852.5,0.001]
[1764551668422,4.23072908,2853.0,2852.5,0.001]
[1764551668423,1.20359411,2853.0,2852.5,0.001]
[1764551668728,0.4742,2852.6,2852.5,0.001]
[1764551669248,0.706,2852.9,2852.5,0.001]
[1764551669249,0.34675724,2852.8,2852.5,0.001]
[1764551669543,0.82475724,2852.8,2852.5,0.001]
[1764551669716,0.72559411,2853.2,2852.5,0.001]
[1764551669717,0.478,2853.2,2852.5,0.001]
[1764551669923,0.228,2853.0,2852.6,0.03505573]
[1764551670788,0.228,2853.0,2852.5,0.001]
[1764551671209,0.228,2853.0,2852.5,0.03605696]
[1764551671538,0.228,2853.1,2852.5,0.03605696]
[1764551671902,0.4742,2852.1,2850.8,0.1068]
[1764551672099,0.34675724,2851.7,2850.8,0.1068]
[1764551672524,0.34675724,2852.8,2851.6,0.1068]
[1764551672699,0.478,2852.8,2850.8,0.2136]
[1764551672893,0.478,2852.8,2851.1,0.72559411]
[1764551672894,0.34675724,2852.3,2851.1,0.72559411]
[1764551673089,0.57475724,2852.4,2851.2,0.52704421]
[1764551673294,0.72559411,2852.1,2850.8,0.1068]
[1764551673490,0.34675724,2851.5,2850.8,0.1068]
[1764551674002,3.98492617,2851.5,2850.8,0.1068]
[1764551674219,0.34675724,2851.4,2850.9,0.03507664]
[1764551674520,0.478,2851.4,2851.0,0.03507541]
[1764551674826,0.478,2851.4,2850.9,0.03507664]
[1764551675026,0.478,2851.4,2850.7,0.0350791]
[1764551675222,0.478,2851.4,2850.7,3.54298771]
[1764551675390,1.20359411,2851.4,2850.7,0.0350791]
[1764551675596,0.34675724,2851.2,2850.7,0.0350791]
[1764551675893,0.34675724,2851.4,2850.6,0.03508033]
[1764551676094,0.1999,2851.6,2850.7,3.50791033]
[1764551676297,0.1999,2851.6,2850.8,0.36147103]
[1764551676716,3.70670319,2851.6,2850.8,0.36147103]
[1764551676916,0.1999,2851.6,2850.9,0.03507664]
[1764551677710,0.4279,2851.9,2850.9,0.14187664]
[1764551678025,1.20359411,2852.2,2851.0,7.01508242]
[1764551678328,0.34675724,2852.0,2851.0,7.12188242]
[1764551678623,0.34675724,2852.0,2851.1,0.74726242]
[1764551678812,7.49037684,2852.1,2851.1,0.74726242]
[1764551678813,1.20359411,2852.1,2851.1,0.74726242]
[1764551679013,0.478,2852.0,2851.1,0.71218824]
[1764551679216,0.478,2852.0,2851.2,0.03507295]
[1764551679426,3.54114541,2852.2,2851.2,0.03507295]
[1764551679602,3.54114541,2852.2,2851.1,1.43778235]
[1764551679603,0.228,2852.1,2851.1,1.87322301]
[1764551679806,0.228,2852.1,2851.2,0.92390349]
[1764551680016,3.73428036,2852.1,2851.3,3.50717216]
[1764551680232,3.73428036,2852.1,2851.3,7.01434432]
[1764551680636,3.73428036,2852.1,2850.5,0.001]
[1764551680637,0.4742,2851.4,2850.5,0.001]
[1764551680834,8.59509843,2851.7,2850.5,0.001]
[1764551680835,0.93245724,2850.9,2850.5,0.001]
[1764551681011,0.8137,2850.9,2850.5,0.001]
[1764551681215,0.34675724,2851.0,2850.8,0.1078]
[1764551681399,0.478,2852.1,2851.0,2.998932]
[1764551681598,0.4279,2852.5,2851.0,2.998932]
[1764551681599,0.1999,2851.9,2851.2,0.1068]
[1764551681802,0.1999,2851.9,2850.8,0.001]
[1764551681803,8.59509843,2851.7,2850.8,0.001]
[1764551682037,7.01311452,2851.8,2850.8,0.03607787]
[1764551682238,7.01311452,2851.8,2850.8,0.001]
[1764551682239,0.34675724,2851.7,2850.8,0.001]
[1764551682408,1.43159411,2851.8,2850.8,0.86734961]
[1764551682604,0.34675724,2851.5,2850.8,0.001]
[1764551682831,0.478,2851.7,2850.8,0.001]
[1764551683040,9.07309843,2851.7,2850.8,0.001]
[1764551683241,0.34675724,2851.4,2850.8,0.001]
[1764551683442,0.478,2851.6,2850.8,0.001]
[1764551683745,0.34675724,2851.5,2850.8,0.001]
[1764551683953,0.34675724,2851.5,2850.8,0.03607787]
[1764551684101,7.49209832,2851.4,2850.8,0.001]
[1764551684302,0.4742,2850.9,2850.8,0.001]
[1764551684903,0.34675724,2851.2,2850.8,0.001]
[1764551685397,0.478,2851.1,2850.8,0.001]
[1764551685598,0.4742,2850.9,2850.8,0.001]
[1764551685918,10.74914748,2851.4,2850.8,0.001]
[1764551685919,7.24209832,2851.4,2850.8,0.001]
[1764551686122,7.72009832,2851.4,2850.8,0.001]
[1764551686519,7.24209832,2851.4,2850.8,0.001]
[1764551686827,0.82475724,2851.3,2850.8,0.001]
[1764551687330,0.478,2851.2,2850.8,0.001]
[1764551688507,3.85396138,2851.3,2850.8,0.001]
[1764551688733,0.228,2851.5,2850.8,0.001]
[1764551689241,0.74105711,2851.5,2850.8,0.001]
[1764551689535,3.8533145,2851.8,2850.8,0.73778455]
[1764551689738,0.228,2851.6,2850.8,0.70270668]
[1764551690135,0.34675724,2851.2,2850.8,0.001]
[1764551690534,0.478,2851.1,2850.8,0.001]
[1764551690935,0.82475724,2851.1,2850.8,0.001]
[1764551691237,3.50704916,2851.4,2850.8,0.001]
[1764551691447,0.03505711,2851.3,2850.8,0.001]
[1764551691803,0.228,2851.4,2850.8,0.001]
[1764551692011,4.80706592,2851.7,2850.8,0.001]
[1764551692246,0.228,2851.7,2850.8,0.1078]
[1764551692548,0.34675724,2851.7,2850.8,0.001]
[1764551692717,3.73458632,2851.8,2850.9,0.80848207]
[1764551692925,0.4621,2851.7,2850.9,0.70168207]
[1764551693338,0.57475724,2851.8,2851.0,0.03507541]
[1764551693645,0.92549411,2851.9,2851.0,0.14187541]
[1764551693646,0.1815,2851.9,2851.0,0.14187541]
[1764551693806,0.1815,2851.9,2851.0,0.1068]
[1764551694313,1.03685724,2852.1,2851.1,0.03507418]
[1764551694740,4.543133,2852.1,2851.2,7.01459034]
[1764551694941,4.543133,2852.1,2851.2,7.73023679]
[1764551695745,0.002,2852.0,2851.2,7.73023679]
[1764551696369,0.002,2852.0,2851.3,0.1068]
[1764551696645,0.002,2852.0,2851.2,7.73023679]
[1764551697214,0.002,2852.0,2851.3,0.03507172]
[1764551697440,0.002,2852.0,2851.4,0.82007492]
[1764551697615,0.002,2852.0,2851.4,1.04807492]
[1764551697816,0.002,2852.0,2851.4,0.228]
[1764551697817,0.6436,2851.9,2851.4,0.228]
[1764551698061,0.03505711,2851.8,2851.4,0.228]
[1764551698337,3.98802932,2851.5,2851.0,0.228]
[1764551698641,4.02309274,2851.5,2851.0,0.228]
[1764551698847,0.4811,2851.1,2850.8,0.001]
[1764551699150,0.49715711,2851.4,2850.8,3.50877128]
[1764551699328,0.4621,2851.4,2850.8,3.50877128]
[1764551699710,0.4621,2851.4,2850.8,0.001]
[1764551700247,3.50717216,2851.3,2850.8,0.001]
[1764551700451,0.4811,2850.9,2850.8,0.001]
[1764551700757,0.82785724,2850.9,2850.8,0.001]
[1764551701066,0.9432,2850.9,2850.8,0.001]
[1764551701214,1.28995724,2850.9,2850.8,0.001]
[1764551701413,1.1712,2850.9,2850.8,0.001]
[1764551702236,0.80885724,2851.3,2850.8,0.001]
[1764551702411,4.54413798,2851.3,2850.8,0.001]
[1764551702749,0.80885724,2851.2,2850.8,0.001]
[1764551702953,0.4811,2850.9,2850.8,0.001]
[1764551703247,0.82785724,2850.9,2850.8,0.001]
[1764551703548,1.28995724,2850.9,2850.8,0.001]
[1764551704353,0.34675724,2850.9,2850.8,0.001]
[1764551704560,0.4811,2850.9,2850.8,0.001]
[1764551704920,1.28995724,2850.9,2850.8,0.001]
[1764551705513,0.886604,2850.6,2850.2,0.001]
[1764551705748,0.82785724,2850.3,2850.2,0.001]
[1764551705922,1.05585724,2850.3,2850.2,0.001]
[1764551706121,0.80885724,2850.8,2850.2,0.001]
[1764551706430,0.34675724,2850.5,2850.2,0.001]
[1764551706628,0.4811,2850.3,2850.2,0.001]
[1764551706846,3.50775783,2850.9,2850.2,0.001]
[1764551707016,1.07235135,2850.7,2850.2,0.001]
[1764551707212,0.34675724,2850.4,2850.2,0.001]
[1764551709555,0.228,2850.6,2850.2,0.001]
[1764551710157,4.19785893,2850.9,2850.2,0.001]
[1764551710345,0.34675724,2850.8,2850.2,0.001]
[1764551710547,0.38181435,2851.2,2850.2,0.03608525]
[1764551710771,0.38181435,2851.2,2850.2,0.001]
[1764551710772,0.60981435,2851.2,2850.2,0.001]
[1764551710983,0.60981435,2851.2,2850.2,0.03608525]
[1764551711286,0.228,2851.5,2850.3,0.47252468]
[1764551711481,0.26305711,2851.5,2850.4,0.228]
[1764551711696,0.1999,2852.5,2851.4,0.1088]
[1764551711841,0.1999,2852.5,2851.6,0.1088]
[1764551711842,0.03705711,2852.3,2851.6,0.1088]
[1764551712043,3.50616434,2852.2,2851.4,0.228]
[1764551712352,0.002,2852.3,2851.4,0.228]
[1764551712557,0.03705711,2852.3,2851.9,0.1088]
[1764551712870,0.002,2852.3,2852.1,0.32864066]
[1764551713072,0.002,2852.3,2852.2,0.3348]
[1764551713394,0.002,2852.3,2852.2,0.4416]
[1764551713548,0.002,2852.3,2852.2,0.3348]
[1764551713745,0.002,2852.3,2852.2,0.4416]
[1764551713949,0.002,2852.3,2852.2,1.53632017]
[1764551714276,0.002,2852.3,2852.2,4.3201232]
[1764551714441,0.002,2852.3,2852.2,7.82618869]
[1764551714647,0.03705711,2853.9,2852.8,1.13109811]
[1764551714648,0.002,2853.9,2852.8,1.13109811]
[1764551714847,0.002,2853.9,2853.8,0.1068]
[1764551715083,0.002,2853.9,2853.8,0.3338]
[1764551715316,0.002,2853.9,2853.8,0.93919411]
[1764551715617,0.002,2854.5,2854.1,0.405504]
[1764551715896,0.002,2855.3,2854.9,0.405504]
[1764551716102,0.002,2855.3,2855.0,0.227]
[1764551716270,0.002,2855.3,2855.1,0.3318]
[1764551716596,0.002,2855.3,2854.8,0.227]
[1764551716796,0.002,2855.3,2854.0,0.72559411]
[1764551716797,0.4621,2855.2,2854.0,0.72559411]
[1764551716985,0.4621,2855.2,2854.1,0.42295711]
[1764551717297,0.49715711,2855.2,2854.1,0.42295711]
[1764551717911,0.49715711,2855.2,2854.0,0.227]
[1764551718121,0.80885724,2855.2,2854.0,0.227]
[1764551718264,0.002,2855.3,2854.1,0.1048]
[1764551718265,0.34875724,2855.3,2854.1,0.1048]
[1764551718603,0.002,2855.3,2854.2,0.72559411]
[1764551718786,0.34675724,2855.1,2854.2,0.72559411]
[1764551718989,0.34675724,2855.1,2854.2,1.53207982]
[1764551719187,0.84391435,2855.1,2854.2,1.53207982]
[1764551719559,0.03505711,2855.1,2854.2,1.53207982]
[1764551719767,0.34675724,2855.0,2854.2,1.53207982]
[1764551720121,0.34675724,2855.0,2854.3,0.227]
[1764551720297,0.72559411,2854.8,2853.5,0.1048]
[1764551720460,0.34675724,2854.2,2853.5,0.3318]
[1764551720660,0.03505711,2854.7,2853.5,7.34073638]
[1764551720661,0.34675724,2854.5,2853.5,7.34073638]
[1764551720966,0.34675724,2854.1,2853.5,0.227]
[1764551721165,0.03505711,2854.0,2853.3,0.227]
[1764551721474,0.03505711,2854.4,2853.3,0.95259411]
[1764551721678,0.38181435,2854.5,2853.3,1.28123477]
[1764551721878,0.84391435,2854.5,2853.4,0.82908745]
[1764551722196,0.34675724,2854.4,2853.4,0.82908745]
[1764551722572,0.34675724,2854.4,2853.5,3.50446819]
[1764551722778,0.03505711,2854.3,2853.1,0.1048]
[1764551723098,0.34675724,2854.1,2853.2,0.98764247]
[1764551723396,0.03505711,2854.3,2853.3,0.1048]
[1764551723597,0.03505711,2854.5,2853.4,0.03504591]
[1764551723924,0.4503,2854.8,2853.4,0.36368657]
[1764551723925,0.03505711,2854.6,2853.4,0.36368657]
[1764551724210,0.03505711,2854.6,2853.4,0.32864066]
[1764551724370,0.48535711,2854.6,2853.3,0.43344066]
[1764551724698,0.1815,2854.9,2853.3,0.43344066]
[1764551724699,0.1815,2854.9,2853.6,0.72559411]
[1764551724903,0.68325711,2854.9,2853.7,0.03504222]
[1764551725075,1.03001435,2854.9,2853.7,0.46848288]
[1764551725281,0.1815,2854.9,2853.7,0.46848288]
[1764551725481,0.21795711,2855.2,2854.2,0.32864066]
[1764551725668,0.21795711,2855.2,2854.1,0.32864066]
[1764551725878,0.68465711,2855.2,2854.0,0.03503854]
[1764551726100,0.21795711,2855.2,2854.1,0.227]
[1764551726477,0.21795711,2855.2,2854.3,7.00697192]
[1764551726782,0.21795711,2855.2,2853.5,11.95354154]
[1764551726783,0.405504,2855.0,2853.5,3.50446819]
[1764551726982,0.34675724,2854.6,2853.6,0.76063756]
[1764551727191,0.38181435,2855.0,2853.8,0.72559411]
[1764551727519,0.4687,2855.3,2854.2,2.242594]
[1764551727803,0.4687,2855.3,2853.7,0.510304]
[1764551727804,0.002,2855.3,2854.4,0.405504]
[1764551728112,0.002,2855.3,2854.5,0.36367306]
[1764551728268,0.002,2855.3,2854.6,0.32864066]
[1764551728609,0.002,2855.3,2854.8,0.72559411]
[1764551728922,0.002,2855.3,2854.9,1.35045793]
[1764551729444,0.002,2855.3,2855.1,0.405504]
[1764551729607,0.002,2855.3,2854.7,0.227]
[1764551729998,0.002,2855.3,2854.8,0.13982872]
[1764551730307,0.002,2855.3,2854.9,2.484431]
[1764551730502,0.002,2855.3,2855.0,0.2589231]
[1764551730703,0.002,2855.3,2855.2,0.72559411]
[1764551731003,0.4968,2855.1,2854.4,0.227]
[1764551731205,0.002,2855.3,2854.3,7.00697192]
[1764551731400,0.1829,2854.4,2853.5,3.50446819]
[1764551731595,0.1829,2854.4,2853.6,0.227]
[1764551731794,0.1829,2854.4,2853.6,0.98763756]
[1764551731994,0.1829,2854.7,2853.6,1.09243756]
[1764551732423,0.1829,2854.7,2853.7,0.32864066]
[1764551732635,0.4667,2854.6,2853.6,0.95259411]
[1764551732845,0.4667,2854.6,2853.3,0.001]
[1764551732846,1.19229411,2854.6,2853.3,0.001]
[1764551733006,1.19229411,2854.6,2853.4,0.3318]
[1764551733211,1.53905135,2854.6,2853.5,0.03504468]
[1764551733410,0.81345724,2854.6,2853.5,0.03504468]
[1764551733708,1.19229411,2854.5,2853.3,0.001]
[1764551733907,0.34675724,2853.9,2853.3,3.54076097]
[1764551734111,0.34675724,2853.9,2853.3,3.50571384]
[1764551734312,0.1829,2853.8,2853.4,0.03504591]
[1764551734838,0.6496,2853.8,2853.3,3.50570783]
[1764551735040,0.99635724,2853.8,2853.3,3.50570783]
[1764551735243,0.4667,2853.7,2853.3,0.001]
[1764551735542,0.34675724,2853.5,2853.3,0.001]
[1764551735745,0.4667,2853.7,2853.3,0.001]
[1764551735948,0.1829,2853.8,2853.3,3.54074705]
[1764551736639,0.6496,2853.8,2853.3,3.54074705]
[1764551736947,0.6496,2853.8,2853.3,0.001]
[1764551737154,0.72559411,2854.5,2853.3,7.52355354]
[1764551737155,0.4667,2854.3,2853.3,7.52355354]
[1764551737337,3.5032489,2854.5,2853.3,7.52355354]
[1764551737338,1.19229411,2854.5,2853.3,7.38370641]
[1764551737510,0.34675724,2854.1,2853.3,7.38370641]
[1764551737714,0.34675724,2854.1,2853.4,0.227]
[1764551738023,0.34675724,2854.1,2853.5,0.03504468]
[1764551738226,0.34675724,2854.1,2853.4,0.98807064]
[1764551739048,0.4667,2854.4,2853.4,7.23617983]
[1764551739256,0.03505711,2854.6,2853.5,0.76063879]
[1764551739410,0.52965724,2854.7,2853.6,2.450195]
[1764551739615,0.1829,2854.7,2853.6,0.405504]
[1764551739834,0.50175711,2854.6,2853.5,0.72559411]
[1764551740046,0.81345724,2854.6,2853.6,1.14663649]
[1764551740453,0.4667,2854.6,2853.6,1.14663649]
[1764551740637,4.06770941,2854.7,2853.6,1.14663649]
[1764551740839,0.34675724,2854.4,2853.8,0.72559411]
[1764551741043,0.34675724,2854.4,2853.9,0.26203977]
[1764551741367,0.4667,2854.5,2853.3,0.001]
[1764551741368,0.4667,2854.5,2853.7,0.227]
[1764551741545,0.81345724,2854.5,2853.8,0.03504099]
[1764551741744,0.4667,2854.5,2853.7,0.227]
[1764551741952,0.4667,2854.4,2853.7,0.227]
[1764551742268,0.4667,2854.4,2853.8,0.03504099]
[1764551742477,0.76065122,2854.6,2853.8,0.03504099]
[1764551742478,1.10740846,2854.6,2853.8,0.03504099]
[1764551742772,1.10740846,2854.6,2853.8,3.50400758]
[1764551742773,0.4667,2854.5,2853.8,3.50400758]
[1764551742977,0.81345724,2854.5,2853.7,0.227]
[1764551743174,0.81345724,2854.5,2853.8,0.03504099]
[1764551743532,0.81345724,2854.5,2853.7,7.23543187]
[1764551744032,0.4667,2854.5,2853.7,7.23543187]
[1764551744725,0.4667,2854.5,2853.9,3.50397701]
[1764551744933,0.4667,2854.5,2854.0,0.03503854]
[1764551745161,3.96996112,2854.5,2854.0,0.03503854]
[1764551745381,0.50175711,2854.4,2853.7,0.227]
[1764551745938,0.50175711,2854.4,2853.8,0.03504099]
[1764551746241,0.50175711,2854.4,2853.7,0.227]
[1764551746438,0.1829,2853.8,2853.3,0.001]
[1764551746641,0.1829,2853.8,2853.4,0.72559411]
[1764551746835,3.8502432,2854.3,2853.4,4.45709721]
[1764551747057,0.1829,2853.9,2853.4,4.45709721]
[1764551747442,0.6496,2853.9,2853.4,4.45709721]
[1764551747850,0.6496,2853.9,2853.3,3.50568129]
[1764551747851,0.34675724,2853.4,2853.3,0.001]
[1764551748162,0.4667,2853.8,2853.3,0.001]
[1764551748339,0.52965724,2853.9,2853.3,0.001]
[1764551748660,0.1829,2853.9,2853.4,0.03504591]
[1764551748860,0.6496,2853.9,2853.3,3.50570806]
[1764551749062,0.6496,2853.9,2853.3,0.001]
[1764551749230,0.4667,2853.8,2853.3,0.001]
[1764551749436,0.4667,2854.4,2853.4,0.72559411]
[1764551749631,0.50175711,2854.3,2853.5,0.4458308]
[1764551750163,0.50175711,2854.3,2853.6,0.03504345]
[1764551750359,0.34675724,2854.4,2853.6,0.03504345]
[1764551750360,0.03505711,2854.4,2853.6,0.03504345]
[1764551750559,0.002,2854.5,2853.5,0.5506308]
[1764551750763,4.31870614,2854.5,2853.6,7.00869076]
[1764551750951,0.81545724,2854.5,2853.7,0.74545216]
[1764551751151,0.81545724,2854.5,2853.7,0.97245216]
[1764551751486,0.4687,2854.5,2853.7,0.97245216]
[1764551751760,0.4687,2854.5,2853.7,0.74545216]
[1764551751960,0.03505711,2854.4,2853.8,0.227]
[1764551752128,0.81545724,2854.5,2853.8,0.227]
[1764551752129,0.80051435,2854.5,2853.8,0.227]
[1764551752733,0.1829,2854.7,2853.8,0.227]
[1764551752734,3.68596995,2854.7,2853.9,7.00795402]
[1764551752958,3.68596995,2854.7,2853.8,3.73108235]
[1764551753270,0.1829,2854.7,2853.8,3.73107128]
[1764551753565,0.6478,2853.9,2853.3,0.001]
[1764551753763,0.6478,2853.9,2853.3,0.228]
[1764551753970,0.6478,2853.9,2853.4,0.03504591]
[1764551754534,1.1172,2853.9,2853.4,0.03504591]
[1764551754771,1.1172,2853.9,2853.3,7.23735731]
[1764551755068,1.1172,2853.9,2853.4,0.75878164]
[1764551755292,3.5035398,2854.3,2853.4,0.75878164]
[1764551755293,0.1829,2854.7,2853.8,0.1177]
[1764551755567,0.002,2854.8,2853.9,0.3447]
[1764551755737,0.4694,2854.7,2853.4,1.44932984]
[1764551755938,0.4694,2854.7,2853.5,0.227]
[1764551756151,0.34675724,2854.3,2853.6,0.03504345]
[1764551756356,0.4694,2854.7,2853.8,0.72559411]
[1764551756671,0.002,2854.8,2853.9,0.03503977]
[1764551756851,0.002,2854.8,2854.1,0.72559411]
[1764551757046,0.002,2854.8,2854.2,1.14641568]
[1764551757372,0.002,2855.9,2855.0,0.1177]
[1764551757546,0.002,2855.9,2855.4,0.405504]
[1764551757745,0.002,2855.9,2855.6,0.72559411]
[1764551757945,0.1895,2855.9,2855.0,0.5172506]
[1764551758144,0.34675724,2855.8,2855.1,0.227]
[1764551758371,0.002,2855.9,2855.2,0.405504]
[1764551758738,0.002,2855.9,2855.4,0.72559411]
[1764551759959,0.1895,2855.9,2855.4,0.72559411]
[1764551760162,0.6589,2855.9,2855.4,0.72559411]
[1764551760362,0.6589,2855.9,2855.1,3.72938971]
[1764551760565,0.34675724,2855.6,2855.1,0.227]
[1764551760739,0.4694,2855.8,2853.9,0.1177]
[1764551760740,0.4603,2855.2,2854.5,0.227]
[1764551760950,0.6589,2855.9,2854.6,3.53814894]
[1764551761269,0.002,2855.9,2854.9,29.271368]
[1764551761478,0.002,2855.9,2855.1,0.405504]
[1764551761658,0.002,2855.9,2855.6,0.72559411]
[1764551761974,0.002,2855.9,2855.7,0.227]
[1764551762474,0.6589,2855.9,2854.8,4.608166]
[1764551762672,0.6589,2855.9,2854.9,0.72546809]
[1764551762880,0.1895,2855.9,2855.1,0.72559411]
[1764551763093,0.6589,2855.9,2855.2,0.227]
[1764551763482,0.1895,2855.9,2855.2,0.227]
[1764551763692,0.1895,2855.9,2854.8,0.227]
[1764551763693,0.4694,2855.8,2854.8,0.227]
[1764551763997,0.4694,2855.8,2854.9,0.03502749]
[1764551764186,0.4694,2855.7,2854.8,0.72559411]
[1764551764359,0.81615724,2855.7,2855.0,0.03502626]
[1764551764559,0.81615724,2855.7,2855.0,0.227]
[1764551764948,0.4694,2855.6,2853.9,8.04356935]
[1764551765150,0.34675724,2855.0,2854.0,0.81612694]
[1764551765361,0.34675724,2855.0,2854.1,0.26203731]
[1764551765667,0.1875,2854.9,2854.1,0.227]
[1764551765870,0.72559411,2855.6,2854.1,0.227]
[1764551765871,0.4694,2855.6,2854.2,0.1177]
[1764551766070,0.4694,2855.6,2854.2,0.15273608]
[1764551766071,0.4694,2855.5,2854.2,0.15273608]
[1764551766269,0.34675724,2855.3,2854.2,0.15273608]
[1764551766596,0.81615724,2855.5,2854.4,0.32864066]
[1764551766959,0.81615724,2855.5,2854.7,0.72559411]
[1764551767163,0.34675724,2855.5,2854.8,1.15852346]
[1764551767361,0.1895,2855.9,2855.1,5.633192]
[1764551767362,0.002,2855.9,2855.1,5.633192]
[1764551767603,0.002,2855.9,2855.4,0.72559411]
[1764551767960,0.1895,2855.9,2855.3,2.68346]
[1764551768160,0.002,2855.9,2855.4,0.03502136]
[1764551768561,0.002,2855.9,2855.2,0.3447]
[1764551768757,0.002,2855.9,2855.6,0.72559411]
[1764551768998,0.002,2855.9,2855.8,10.46489177]
[1764551769167,0.002,2855.9,2855.8,9.46378377]
[1764551769366,0.002,2855.9,2855.8,7.63185077]